Cogmind - Beta 15 @@@ ROGUE MODE // 2025.09.19 @ 18:38:16 Player: Tereza Result: Destroyed by S-43 Plague with Heavy Machine Gun Performance ------------- Evolutions (6) 3000 Regions Visited (26) 5200 Robots Destroyed (274) 1370 Value Destroyed (10082) 10082 Prototype IDs (32) 640 Alien Tech Used (0) 0 Bonus (6097) 6097 TOTAL SCORE: 26389 Bonus ------- High Alert Combat Kills 258 Follower Combat Kills 2518 Entered DSFs 500 Network Hubs Disabled 200 Met Data Miner 300 Met Warlord at Base 500 MAIN.C Attacked Warlord 500 Warlord Defense Kills 496 Built Enhanced Grunts 300 A7 Reached Mainframe 300 Met R17 at Cetus 500 Friendly Fire -275 Cogmind --------- Core Integrity 0/1150 Matter 295/300 Energy 89/100 System Corruption 6% Temperature Cool (6) Movement Hovering (62) Location -3/Proximity Caves Parts ------- > --- POWER (2) -------- (None) > --- PROPULSION (4) --- Improved Gyrokinetic Inverter Improved Gyrokinetic Inverter Improved Gyrokinetic Inverter > --- UTILITY (11) ----- Advanced Signal Interpreter Advanced Targeting Computer Hacking Suite Advanced Hacking Suite Improved System Shield > --- WEAPON (2) ------- (None) > --- INVENTORY (5) ---- (None) Peak State ------------ > --- POWER ------------ Light Angular Momentum Engine Quantum Reactor > --- PROPULSION ------- Centrium Heavy Treads Centrium Heavy Treads > --- UTILITY ---------- Huge Storage Unit Enhanced Optical Array Improved Sensor Array Improved Signal Interpreter Centrium Medium Armor Plating Centrium Medium Armor Plating Centrium Medium Armor Plating Advanced Shield Generator Improved System Shield > --- WEAPON ----------- Advanced KE Penetrator Advanced KE Penetrator > --- INVENTORY -------- Quantum Reactor Improved Treads Improved Medium Treads Centrium Heavy Treads Centrium Heavy Treads Centrium Heavy Treads Advanced Heat Sink High-capacity Matter Pod Advanced Weight Redist. System Improved Sensor Array Improved Signal Interpreter Advanced Recoil Stabilizer Improved System Shield Advanced KE Penetrator Bore Cannon Advanced Datajack Remote Datajack Heavy Mace Dirty Bomb Trap Dirty Bomb Trap [Rating: 128] Favorites ----------- Power Improved Ion Engine Engine Improved Ion Engine Power Core Light Fission Core Reactor Quantum Reactor Propulsion Light Treads Treads Light Treads Leg Carbon-fiber Leg Hover Unit Improved Gyrokinetic Inverter Utility Huge Storage Unit Device Improved Sensor Array Storage Huge Storage Unit Processor Improved Signal Interpreter Hackware Hacking Suite Protection Centrium Medium Armor Plating Weapon Improved Assault Rifle Energy Cannon Compact Ion Cannon Ballistic Gun Improved Assault Rifle Ballistic Cannon Mini Assault Cannon Launcher Micro-nuke Launcher Impact Weapon Heavy Mace Slashing Weapon Phasing Sabre Special Melee Weapon Datajack Build | -11 -10 -9 -9 -8 -8 -7 -7 -7 -7 -6 -6 -6 -6 -6 -6 -5 -5 -5 -5 -4 -4 -4 -4 -4 -4 -3 ------- Run | Yrd Mat Mat Min Mat Sto Fac Low Low Dat Pro Fac Ext Cet Arc Hub Fac Was Fac DSF Fac Was Fac Upp Upp War Pro Slots Evolved 12 | . . 2 . 2 . 2 . . . . 2 . . . . 2 . . . 2 . . . . . . Power 1 | . . . . . . . . . . . 1 . . . . . . . . . . . . . . . Propulsion 2 | . . . . 1 . 1 . . . . . . . . . . . . . . . . . . . . Utility 9 | . . 2 . 1 . 1 . . . . 1 . . . . 2 . . . 2 . . . . . . Weapon . | . . . . . . . . . . . . . . . . . . . . . . . . . . . Parts Attached 196 | 6 9 16 1 24 22 13 10 1 . 9 6 19 6 4 4 11 . 3 2 6 4 7 4 3 1 5 Power 21 | 1 1 1 . 1 1 2 1 1 . 1 1 2 1 . 1 3 . . . . 1 . . 1 . 1 Engine 11 | 1 1 1 . 1 1 2 . 1 . 1 . . . . 1 1 . . . . . . . . . . Core 5 | . . . . . . . 1 . . . 1 2 . . . 1 . . . . . . . . . . Reactor 5 | . . . . . . . . . . . . . 1 . . 1 . . . . 1 . . 1 . 1 Propulsion 58 | 2 1 4 . 7 13 5 5 . . 4 1 5 2 1 . 1 . . 2 1 . 2 . . . 2 Treads 44 | 2 1 4 . 7 13 5 5 . . 1 . . 2 1 . 1 . . 2 . . . . . . . Leg 9 | . . . . . . . . . . 3 1 5 . . . . . . . . . . . . . . Wheel . | . . . . . . . . . . . . . . . . . . . . . . . . . . . Hover 5 | . . . . . . . . . . . . . . . . . . . . 1 . 2 . . . 2 Flight . | . . . . . . . . . . . . . . . . . . . . . . . . . . . Utility 68 | 1 3 5 . 10 3 5 1 . . 4 1 5 2 3 1 5 . 3 . 3 2 4 3 2 . 2 Device 22 | . . . . 2 1 3 . . . 1 1 2 . 1 1 4 . 1 . 1 . 3 . 1 . . Storage 5 | 1 2 1 . 1 . . . . . . . . . . . . . . . . . . . . . . Processor 12 | . 1 1 . 4 . . . . . 2 . . . . . . . 1 . . . 1 1 . . 1 Hackware 10 | . . . . . . 2 . . . . . 2 . 2 . . . 1 . 2 . . . . . 1 Protection 19 | . . 3 . 3 2 . 1 . . 1 . 1 2 . . 1 . . . . 2 . 2 1 . . Artifact . | . . . . . . . . . . . . . . . . . . . . . . . . . . . Weapon 49 | 2 4 6 1 6 5 1 3 . . . 3 7 1 . 2 2 . . . 2 1 1 1 . 1 . Energy Gun . | . . . . . . . . . . . . . . . . . . . . . . . . . . . Energy Cannon 1 | . . . . . . . . . . . . . . . . . . . . 1 . . . . . . Ballistic Gun 32 | 2 3 5 . 4 4 1 2 . . . 1 5 1 . 2 2 . . . . . . . . . . Ballistic Cannon 6 | . . . . 1 1 . . . . . 2 1 . . . . . . . . 1 . . . . . Launcher 5 | . . . 1 . . . 1 . . . . 1 . . . . . . . 1 . . . . 1 . Special Weapon . | . . . . . . . . . . . . . . . . . . . . . . . . . . . Impact Weapon 2 | . 1 1 . . . . . . . . . . . . . . . . . . . . . . . . Slashing Weapon 2 | . . . . . . . . . . . . . . . . . . . . . . 1 1 . . . Piercing Weapon . | . . . . . . . . . . . . . . . . . . . . . . . . . . . Special Melee Weapon 1 | . . . . 1 . . . . . . . . . . . . . . . . . . . . . . Unidentified Prototypes 8 | . . 1 . 1 1 . . . . . 1 . 3 . . . . . . 1 . . . . . . Corrupted Parts 4 | . . . . . . . . . . 1 . . . . 2 . . . 1 . . . . . . . System Corruption 24 | . . . . . . . . . . 4 . . . . 9 . . . 11 . . . . . . . Parts Lost 96 | . 3 6 . 6 4 1 8 . . 11 . 21 . . 3 7 5 . 2 . 2 . 3 1 12 1 Power 16 | . . 1 . . 1 1 1 . . 1 . 3 . . . 2 . . . . 2 . 1 . 2 1 Propulsion 26 | . 1 4 . 1 1 . 4 . . 5 . 6 . . . . 1 . . . . . . . 3 . Utility 25 | . . . . 2 1 . 1 . . 2 . 4 . . 1 3 2 . 2 . . . 1 1 5 . Weapon 29 | . 2 1 . 3 1 . 2 . . 3 . 8 . . 2 2 2 . . . . . 1 . 2 . Highest Loss Streak 17 | . 2 1 . 2 2 1 5 . . 5 . 17 . . 2 2 5 . 2 . 2 . 3 1 12 1 To Critical Strikes . | . . . . . . . . . . . . . . . . . . . . . . . . . . . Average Backups 19 | 2 11 23 25 24 24 24 18 21 22 19 19 13 19 19 20 19 14 2 3 3 3 4 5 4 4 . Power 1 | . 1 2 2 2 2 1 1 2 2 1 1 . 1 1 1 1 1 . . . . 1 1 1 1 . Propulsion 3 | 1 2 4 5 4 5 5 . . 1 . . 1 6 4 5 5 4 2 2 2 1 1 2 2 2 . Utility 7 | . 4 9 9 9 8 8 8 11 11 10 9 6 7 7 7 7 5 . 1 . . . 1 . . . Weapon 5 | . 2 6 7 6 7 8 6 7 7 5 6 3 3 5 5 2 1 . . . 1 1 1 1 . . Tool/Special . | . . . . . . . . . . . . . . . . . . . . . . . . . . . Unused Backups 58 | . 3 8 1 5 6 1 . 1 . . 2 3 9 2 . 3 14 . . . . . . . . . Power 10 | . 2 . . . . . . 1 . . 1 . 2 . . 1 3 . . . . . . . . . Propulsion 13 | . . 1 . 3 . . . . . . . . 4 1 . 1 3 . . . . . . . . . Utility 18 | . . 2 . 2 3 1 . . . . . 2 2 1 . 1 4 . . . . . . . . . Weapon 14 | . 1 5 . . 3 . . . . . 1 1 1 . . . 2 . . . . . . . . . Tool/Special 3 | . . . 1 . . . . . . . . . . . . . 2 . . . . . . . . . Average Slot Usage (%) 88 | . 96 97 100 96 97 99 98 99 85 69 92 77 85 85 85 84 56 33 33 22 46 69 79 78 77 38 Engine 6 | . 13 10 11 9 9 6 . 3 7 1 6 1 . . 3 4 3 . . . 7 10 3 . . . Core 1 | . . . . . . . 6 3 . . 3 4 6 6 2 . . . . . . . . . . . Reactor 1 | . . . . . . . . . . . . . 5 6 6 4 3 . . . . . 4 8 9 4 Treads 17 | . 27 21 22 26 26 30 28 29 30 4 . . 11 12 13 11 6 . 1 . . . . . . . Leg 2 | . . . . . . . . . . 6 22 16 3 . . . . . . . . . . . . . Hover 1 | . . . . . . . . . . . . . . . . . . . . 1 9 20 21 21 20 13 Device 4 | . . . . 3 4 6 6 7 7 5 11 4 . . 5 14 11 5 5 5 5 5 10 10 9 . Storage 7 | . 14 11 11 9 9 7 7 7 7 7 6 5 6 6 6 5 3 . . . . . . . . . Processor 17 | . 11 22 22 18 27 16 15 15 15 16 20 13 13 13 13 11 11 15 17 9 5 8 14 15 14 7 Hackware 5 | . . . . . . 12 15 15 15 9 6 13 14 13 7 5 5 11 8 4 10 10 10 10 10 12 Protection 5 | . . 8 11 11 3 1 . . . . . 2 10 12 11 9 2 . . . 3 5 7 6 4 . Ballistic Gun 12 | . 27 21 21 16 12 13 13 14 1 2 5 5 6 6 5 11 5 . . . . . . . . . Ballistic Cannon 2 | . . . . 1 5 1 1 . . 11 6 2 6 6 6 . . . . . . . . . . . Peak Build Rating 128 | 6 12 20 19 30 34 42 46 48 48 51 58 61 109 114 115 128 113 30 42 31 46 74 86 87 91 51 Average Rating 41 | 4 8 17 18 25 30 36 43 46 40 38 54 45 98 109 111 120 70 25 29 20 39 62 80 83 82 42 On Entrance 48 | . 6 12 19 19 30 30 42 46 48 48 47 58 51 109 114 115 113 19 26 34 31 41 74 83 84 20 Naked Turns . | . . . . . . . . . . . . . . . . . . . . . . . . . . . Heaviest Build 146 | 12 51 131 98 104 100 102 100 97 97 97 106 109 136 136 146 144 132 2 1 12 35 26 46 47 47 18 Greatest Support 160 | 40 40 40 40 60 60 89 93 93 93 78 60 60 160 160 160 160 160 3 80 14 22 46 46 46 46 36 Greatest Overweight (x) 32 | 1 8 3 2 1 4 1 32 1 1 29 2 31 2 1 . . 1 . . 1 1 . . 1 1 . Average Overweight (x) . | . . 1 2 1 1 1 . . . 3 1 1 . . . . . . . . . . . . . . Largest Inventory Capacity 25 | 8 20 25 25 25 25 25 25 25 25 25 25 25 25 25 25 25 25 5 5 5 5 5 5 5 5 5 Average Capacity 22 | 7 15 24 25 25 25 25 25 25 25 25 25 24 25 25 25 25 16 5 5 5 5 5 5 5 5 5 Most Carried 25 | 4 20 25 25 25 25 25 25 25 25 25 25 25 25 25 25 25 25 5 5 5 5 5 5 5 5 2 Average Carried 20 | 2 11 23 24 24 24 24 20 25 25 24 24 18 24 24 24 24 16 4 4 4 4 4 5 4 4 . Final Capacity 25 | 8 20 25 25 25 25 25 25 25 25 25 25 25 25 25 25 25 5 5 5 5 5 5 5 5 5 5 Final Carried 25 | 4 20 25 25 24 25 25 25 25 25 24 25 23 25 25 23 25 5 5 3 5 4 5 5 5 3 . Class Distribution -------------------- 28% | Scavenger-Mutant 24% | Mutant 16% | Scavenger-Skirmisher 9% | Hacker-Mutant 8% | Skirmisher 7% | Hacker-Skirmisher Dominant Class ---------------- Mutant | -10/Materials Scavenger-Mutant | -9/Materials Mutant | -9/Mines Scavenger-Mutant | -8/Materials Scavenger-Mutant | -8/Storage Scavenger-Skirmisher | -7/Factory Hacker-Skirmisher | -7/Lower Caves Hacker-Skirmisher | -7/Lower Caves Hacker-Mutant | -7/Data Miner Skirmisher | -6/Proximity Caves Skirmisher | -6/Factory Hacker-Mutant | -6/Extension Scavenger-Mutant | -6/Cetus Scavenger-Mutant | -6/Archives Scavenger-Mutant | -6/Hub_04(d) Scavenger-Skirmisher | -5/Factory Scout | -5/Waste Hacker-Scout | -5/Factory Hacker-Scout | -5/DSF Hacker-Mutant | -4/Factory Hacker-Mutant | -4/Waste Hacker-Mutant | -4/Factory Scavenger-Scout | -4/Upper Caves Hacker-Assassin | -4/Upper Caves Scavenger-Mutant | -4/Warlord Hacker-Mutant | -3/Proximity Caves Resources | -11 -10 -9 -9 -8 -8 -7 -7 -7 -7 -6 -6 -6 -6 -6 -6 -5 -5 -5 -5 -4 -4 -4 -4 -4 -4 -3 ----------- Run | Yrd Mat Mat Min Mat Sto Fac Low Low Dat Pro Fac Ext Cet Arc Hub Fac Was Fac DSF Fac Was Fac Upp Upp War Pro Matter Collected 9703 | 189 562 1127 148 894 1130 591 677 291 . 638 272 875 184 279 322 887 . 65 . . 210 . 143 74 105 40 Remotely . | . . . . . . . . . . . . . . . . . . . . . . . . . . . Salvage Created 10619 | . 788 1686 223 1538 1220 748 164 365 . 449 106 644 330 110 473 1374 . . . . . . 148 91 162 . Parts 591 | . 56 116 21 84 76 41 11 16 . 5 3 23 17 14 24 68 . . . . . . 2 3 11 . Haulers Intercepted 11 | . 2 4 . 2 1 1 . . . . . . . . . 1 . . . . . . . . . . Recyclers Shooed 9 | . . . . 2 . . . . . . . 7 . . . . . . . . . . . . . . Parts Field Recycled . | . . . . . . . . . . . . . . . . . . . . . . . . . . . Retrieved Matter . | . . . . . . . . . . . . . . . . . . . . . . . . . . . Parts Self-Destructed 52 | . . . . . . . 10 4 . 4 . . . . . . . . . . . . 29 5 . . Prevented 3 | . . . . . . . 2 . . 1 . . . . . . . . . . . . . . . . Kills | -11 -10 -9 -9 -8 -8 -7 -7 -7 -7 -6 -6 -6 -6 -6 -6 -5 -5 -5 -5 -4 -4 -4 -4 -4 -4 -3 ------- Run | Yrd Mat Mat Min Mat Sto Fac Low Low Dat Pro Fac Ext Cet Arc Hub Fac Was Fac DSF Fac Was Fac Upp Upp War Pro Combat Hostiles Destroyed 220 | . 18 40 11 31 23 13 7 7 . 12 2 17 4 . 2 21 . . . . . . 3 1 8 . Melee 6 | . . . . . . . . . . . . 2 . . . . . . . . . . 3 1 . . Guns 158 | . 18 40 7 31 14 13 2 4 . 2 . 5 1 . . 21 . . . . . . . . . . Cannons 24 | . . . . . 6 . 4 . . 4 2 3 3 . 2 . . . . . . . . . . . AOE 32 | . . . 4 . 3 . 1 3 . 6 . 7 . . . . . . . . . . . . 8 . Classes Destroyed 18 | . 7 3 1 1 1 1 . 2 . 2 . . . . . . . . . . . . . . . . Worker 5 | . 2 1 . . . 1 . . . . . . . . 1 . . . . . . . . . . . Builder 5 | . 1 . . . 1 . . . . . . . . . 1 2 . . . . . . . . . . Hauler 11 | . 2 4 . 2 1 1 . . . . . . . . . 1 . . . . . . . . . . Recycler 6 | . . . . 1 3 . . . . . . 1 . . 1 . . . . . . . . . . . Minesweeper 1 | . . . . . . . . . . 1 . . . . . . . . . . . . . . . . Mechanic 2 | . . 1 . 1 . . . . . . . . . . . . . . . . . . . . . . Operator 9 | . 1 2 . . 1 . . . . . . . . 4 1 . . . . . . . . . . . Watcher 11 | . 1 4 . 3 1 1 . . . . . . . . . 1 . . . . . . . . . . Swarmer 61 | . 5 15 7 9 3 . 3 . . 3 . 2 . . . 5 . . . . . . 1 . 8 . Grunt 83 | . 13 15 3 13 7 7 3 . . 5 1 7 . . 2 6 . . . . . . 1 . . . Brawler 6 | . . 1 . . . . . . . 1 . 1 . . . 2 . . . . . . 1 . . . Duelist 5 | . . . 1 1 . . 1 . . 1 . 1 . . . . . . . . . . . . . . Sentry 33 | . . 9 . 8 12 1 . . . 1 1 . . . . 1 . . . . . . . . . . Hunter 11 | . . . . . 1 2 . . . . . 2 . . . 5 . . . . . . . . 1 . Programmer 7 | . . . . . . 3 . . . . . 2 . . . 2 . . . . . . . . . . Behemoth 3 | . . . . . . . . . . 1 . 2 . . . . . . . . . . . . . . Cetus Guard 4 | . . . . . . . . . . . . . 4 . . . . . . . . . . . . . Enhanced Grunt 2 | . . . . . . . . . . . . . . . 2 . . . . . . . . . . . Samaritan 3 | . . . . . . . . 3 . . . . . . . . . . . . . . . . . . Thug 5 | . . . . . . . . 5 . . . . . . . . . . . . . . . . . . Butcher 1 | . . . . . . . . 1 . . . . . . . . . . . . . . . . . . Guerrilla 1 | . . . . . . . . . . . . . 1 . . . . . . . . . . . . . Mutant 2 | . . . . . . . . 1 . . . . . . . . . . . . . . . 1 . . Best Kill Streak 11 | . 5 11 4 4 6 3 3 7 . 4 1 7 2 1 2 9 . . . . . . 1 1 8 . Combat Bots Only 11 | . 3 11 4 4 5 3 3 7 . 4 1 7 2 . 1 5 . . . . . . 1 1 8 . Max Kills in Single Turn 4 | . 2 2 4 2 3 1 1 1 . 3 1 2 1 1 2 2 . . . . . . 1 1 3 . Gunslinging 1 | . . 1 . 1 . . . . . . . . . . . 1 . . . . . . . . . . Exploded 4 | . . . 4 . 2 . 1 1 . 3 . 2 . . . . . . . . . . . . 3 . Melee 1 | . . . . . . . . . . . . 1 . . . . . . . . . . 1 1 . . Uniques/NPCs Destroyed . | . . . . . . . . . . . . . . . . . . . . . . . . . . . Combat | -11 -10 -9 -9 -8 -8 -7 -7 -7 -7 -6 -6 -6 -6 -6 -6 -5 -5 -5 -5 -4 -4 -4 -4 -4 -4 -3 -------- Run | Yrd Mat Mat Min Mat Sto Fac Low Low Dat Pro Fac Ext Cet Arc Hub Fac Was Fac DSF Fac Was Fac Upp Upp War Pro Hostile Shots Fired 1661 | . 77 167 28 175 115 91 86 36 . 97 11 232 1 7 69 293 3 . 24 8 . . 12 14 89 26 Missed 507 | . 26 54 7 51 27 39 12 13 . 33 3 90 . . 25 53 . . 6 6 . . 7 4 40 11 Hits 1154 | . 51 113 21 124 88 52 74 23 . 64 8 142 1 7 44 240 3 . 18 2 . . 5 10 49 15 Melee 27 | . . . 3 . . . 15 1 . . . . . . . . 3 . . . . . 1 . 4 . Projectile 1127 | . 51 113 18 124 88 52 59 22 . 64 8 142 1 7 44 240 . . 18 2 . . 4 10 45 15 AOE 5 | . . . . . 1 . . . . . . . . . . . . . . . . . . . 4 . Critical Strikes 30 | . . . . 5 5 1 7 1 . . . 2 1 . 2 2 1 . . . . . 1 . 2 . Part Disruptions 1 | . . . . . . . . . . . . . . . . . . . . . . . . 1 . . Damage Taken 19244 | . 549 1229 259 1674 1372 606 1588 473 . 1053 82 2447 15 173 1019 3291 147 . 615 40 190 . 406 197 1484 335 Core 3388 | . 80 209 65 162 163 75 176 25 . 193 . 380 . 26 . 305 55 . 313 40 . . 23 22 827 249 Absorbed by Shields 1176 | . . . . . . . . . . . . 128 15 . 141 875 . . 17 . . . . . . . Reduced by Siege Mode 204 | . . . . . . . . . . . . . . . . 204 . . . . . . . . . . Redirected to Shielding 120 | . . . . . 5 7 6 . . . . 102 . . . . . . . . . . . . . . Ignored by Resistances 34 | . . . . . . . . . . 34 . . . . . . . . . . . . . . . . Regen/Repaired (Parts) 231 | . . . . 94 . . . . . . . . . . . . . . . . 40 . 76 21 . . Core Remaining (%) 50 | 100 68 . 31 . 40 . . . . 33 . . . . 52 . . . 32 . . . . . . . Volleys Fired 822 | . 86 135 15 113 89 56 27 30 . 34 21 57 14 25 20 89 1 . . . 4 . 1 . 5 . Largest 2 | . 2 2 2 2 2 2 2 2 . 2 2 2 2 2 2 2 1 . . . 1 . 1 . 1 . Hottest 88 | . 40 46 56 63 65 65 79 64 . 80 59 88 83 83 83 70 35 . . . 49 . 49 . 49 . Shots Fired 1602 | . 170 270 30 226 175 112 52 60 . 66 36 109 27 47 41 170 1 . . . 4 . 1 . 5 . Gun 1343 | . 170 270 29 223 133 103 31 56 . 16 15 70 13 22 21 170 1 . . . . . . . . . Cannon 228 | . . . . 3 39 9 19 . . 44 21 34 14 25 20 . . . . . . . . . . . Launcher 31 | . . . 1 . 3 . 2 4 . 6 . 5 . . . . . . . . 4 . 1 . 5 . Special . | . . . . . . . . . . . . . . . . . . . . . . . . . . . Kinetic 1571 | . 170 270 29 226 172 112 50 56 . 60 36 104 27 47 41 170 1 . . . . . . . . . Thermal . | . . . . . . . . . . . . . . . . . . . . . . . . . . . Explosive 31 | . . . 1 . 3 . 2 4 . 6 . 5 . . . . . . . . 4 . 1 . 5 . Electromagnetic . | . . . . . . . . . . . . . . . . . . . . . . . . . . . Robot Hit Streak 23 | . 12 22 15 23 13 13 5 12 . 17 6 6 6 4 7 15 . . . . 4 . . . 2 . Robot Miss Streak 7 | . 4 2 1 5 4 4 4 3 . 5 2 7 4 6 4 5 . . . . 2 . 1 . 1 . Penetration Max 3 | . . . . . . . . 1 . . . . 1 2 3 1 . . . . . . . . . . Secondary Targets 20 | . . 3 1 4 . 1 . 1 . . . 2 . . . 8 . . . . . . . . . . Max Gunslinging Chain 1 | . . 1 1 1 . 1 . 1 . . . 1 . . . 1 . . . . . . . . . . Shots Hit Robots 1083 | . 105 206 26 165 119 75 27 41 . 40 14 74 16 21 20 113 . . . . 2 . 10 3 6 . Core Hits 538 | . 46 88 15 67 49 33 12 26 . 28 4 52 7 11 16 49 . . . . 1 . 7 2 25 . Critical Kills 20 | . 1 . . . . 2 . . . . . . 5 3 3 6 . . . . . . . . . . Critical Parts Destroyed 29 | . 2 . . 1 1 . . 1 . . . 1 3 4 4 12 . . . . . . . . . . Critical Strikes 66 | . 3 . . 1 1 2 . 1 . 4 . 4 10 8 9 19 . . . . . . 2 1 1 . Destroy 55 | . 3 . . 1 1 2 . 1 . . . 1 10 8 9 19 . . . . . . . . . . Blast 7 | . . . . . . . . . . 4 . 3 . . . . . . . . . . . . . . Sever 4 | . . . . . . . . . . . . . . . . . . . . . . . 2 1 1 . Melee Attacks 30 | . 1 2 . . . . . . . . . 5 . . . . . . . . . 1 13 6 2 . Impact 8 | . 1 2 . . . . . . . . . 5 . . . . . . . . . . . . . . Slashing 22 | . . . . . . . . . . . . . . . . . . . . . . 1 13 6 2 . Piercing . | . . . . . . . . . . . . . . . . . . . . . . . . . . . Sneak Attacks 4 | . . . . . . . . . . . . 1 . . . . . . . . . . 1 . 2 . Combat Hostiles 1 | . . . . . . . . . . . . . . . . . . . . . . . 1 . . . Follow-up Attacks . | . . . . . . . . . . . . . . . . . . . . . . . . . . . Damage Inflicted 28060 | . 1263 2792 640 2865 2494 1380 850 1335 . 1745 417 3132 467 650 1306 3091 . . . . 494 . 528 140 2471 . Guns 16660 | . 1263 2792 405 2842 1544 1267 329 768 . 246 141 1022 261 323 429 3028 . . . . . . . . . . Cannons 3751 | . . . . 23 725 113 245 . . 680 276 824 206 311 348 . . . . . . . . . . . Explosions 6762 | . . . 235 . 225 . 276 567 . 819 . 1101 . . 492 63 . . . . 494 . 188 . 2302 . Melee 830 | . . . . . . . . . . . . 181 . . . . . . . . . . 340 140 169 . Ramming 57 | . . . . . . . . . . . . 4 . 16 37 . . . . . . . . . . . Kinetic 20411 | . 1263 2792 405 2865 2269 1380 574 768 . 926 417 1846 467 634 777 3028 . . . . . . . . . . Thermal 63 | . . . . . . . . . . . . . . . . 63 . . . . . . . . . . Explosive 6207 | . . . 235 . 225 . 276 567 . 819 . 1101 . . . . . . . . 494 . 188 . 2302 . Electromagnetic 492 | . . . . . . . . . . . . . . . 492 . . . . . . . . . . . Impact 181 | . . . . . . . . . . . . 181 . . . . . . . . . . . . . . Slashing 649 | . . . . . . . . . . . . . . . . . . . . . . . 340 140 169 . Piercing . | . . . . . . . . . . . . . . . . . . . . . . . . . . . Highest Corruption 27 | . 2 . . . 1 1 1 1 1 5 . . 1 1 19 4 16 16 27 . . . 3 3 6 6 Average Corruption 2 | . 1 . . . 1 1 1 1 1 1 . . 1 1 4 3 12 16 17 . . . 3 3 3 6 Corruption Purged 1 | . . . . . . . . . . . . . . 1 . . . . . . . . . . . . Corruption Blocked . | . . . . . . . . . . . . . . . . . . . . . . . . . . . Effects 124 | . 18 . . . 4 3 10 9 . 18 . . 4 . 1 19 11 7 3 . . . 7 7 1 2 Message Errors 32 | . 4 . . . 3 1 2 4 . 4 . . 1 . . 7 1 1 . . . . 2 1 . 1 Matter Fused 26 | . 2 . . . . . 2 2 . 5 . . 1 . . 2 4 2 1 . . . 3 2 . . Heat Flow Errors 17 | . 3 . . . . 1 1 2 . 2 . . . . . 2 2 1 . . . . 1 1 . 1 Energy Discharges 11 | . 3 . . . 1 1 2 . . 1 . . . . . . . 1 . . . . . 2 . . Parts Rejected 2 | . . . . . . . . . . . . . . . . 1 1 . . . . . . . . . Parts Fused 1 | . . . . . . . . 1 . . . . . . . . . . . . . . . . . . Data Loss (minor) 17 | . 3 . . . . . 1 . . 2 . . 2 . . 5 1 1 . . . . 1 1 . . Data Loss (major) 7 | . 1 . . . . . 1 . . 4 . . . . . . . . . . . . . . 1 . Misfires 3 | . 2 . . . . . 1 . . . . . . . . . . . . . . . . . . . Alerts 4 | . . . . . . . . . . . . . . . 1 1 . 1 1 . . . . . . . Misdirections 3 | . . . . . . . . . . . . . . . . . 2 . 1 . . . . . . . Weapon Failures 1 | . . . . . . . . . . . . . . . . 1 . . . . . . . . . . Overload Shots . | . . . . . . . . . . . . . . . . . . . . . . . . . . . Overflow Damage 530 | . . . . . 32 . 26 . . 68 33 89 . . 88 . . . . . . . 9 . 185 . Projectiles 67 | . . . . . . . 8 . . 17 33 2 . . 7 . . . . . . . . . . . Explosions 369 | . . . . . 32 . 18 . . 51 . . . . 81 . . . . . . . 2 . 185 . Melee 94 | . . . . . . . . . . . . 87 . . . . . . . . . . 7 . . . Knockbacks 12 | . . . . . 3 . 4 . . 4 . . . 1 . . . . . . . . . . . . Impact . | . . . . . . . . . . . . . . . . . . . . . . . . . . . Kinetic 11 | . . . . . 2 . 4 . . 4 . . . 1 . . . . . . . . . . . . Secondary 1 | . . . . . 1 . . . . . . . . . . . . . . . . . . . . . Self-Inflicted Damage 437 | . . . . . 28 . 115 . . 71 . 2 . . 104 32 . . . . . . 85 . . . Shots 10 | . . . . . 1 . 2 . . 4 . . . . 1 1 . . . . . . 1 . . . Rammed 4 | . . . . . . . . . . . . 1 . 2 1 . . . . . . . . . . . Targets Rammed 4 | . . . . . . . . . . . . 1 . 2 1 . . . . . . . . . . . Kicked . | . . . . . . . . . . . . . . . . . . . . . . . . . . . Crushed . | . . . . . . . . . . . . . . . . . . . . . . . . . . . Highest Temperature 309 | . 281 20 16 45 104 92 176 254 . 216 24 309 131 187 159 236 253 73 . . . . 105 247 98 240 Average Temperature 47 | . 108 4 8 10 26 13 90 60 . 40 9 47 61 64 50 102 136 53 . . . . 5 60 30 125 Received Heat Transfer 4229 | . 240 324 42 720 513 150 270 117 . 252 30 946 . . 37 371 . . . . . . 57 78 82 . Effects 7 | . . . . . . . . . . . . . . . . 5 . . . . . . . 2 . . Interference 7 | . . . . . . . . . . . . . . . . 5 . . . . . . . 2 . . Siege Activations 2 | . . . . . . . . . . . . . . . . 2 . . . . . . . . . . Total Turns 132 | . . . . . . . . . . . . . . . . 132 . . . . . . . . . . Longest Duration 74 | . . . . . . . . . . . . . . . . 74 . . . . . . . . . . Martial Activations . | . . . . . . . . . . . . . . . . . . . . . . . . . . . Shielding Activations . | . . . . . . . . . . . . . . . . . . . . . . . . . . . Robots Disrupted . | . . . . . . . . . . . . . . . . . . . . . . . . . . . Combat Hostiles . | . . . . . . . . . . . . . . . . . . . . . . . . . . . Robots Corrupted 2 | . . . . . . . . . . . . . . . 2 . . . . . . . . . . . Combat Hostiles . | . . . . . . . . . . . . . . . . . . . . . . . . . . . Parts Fried 5 | . . . . . . . . . . . . 2 . . 3 . . . . . . . . . . . Impact Corruptions 2 | . . . . . . . . . . . . 2 . . . . . . . . . . . . . . Robots Melted . | . . . . . . . . . . . . . . . . . . . . . . . . . . . Combat Hostiles . | . . . . . . . . . . . . . . . . . . . . . . . . . . . Parts Melted 1 | . . . . . . . . . . . . . . . . . . . . . . . 1 . . . Heat Transferred 50 | . . . . . . . . . . . . . . . . 50 . . . . . . . . . . Parts Sabotaged . | . . . . . . . . . . . . . . . . . . . . . . . . . . . Parts Stolen . | . . . . . . . . . . . . . . . . . . . . . . . . . . . Parts Stripped . | . . . . . . . . . . . . . . . . . . . . . . . . . . . Power Chain Reactions . | . . . . . . . . . . . . . . . . . . . . . . . . . . . Alert | -11 -10 -9 -9 -8 -8 -7 -7 -7 -7 -6 -6 -6 -6 -6 -6 -5 -5 -5 -5 -4 -4 -4 -4 -4 -4 -3 ------- Run | Yrd Mat Mat Min Mat Sto Fac Low Low Dat Pro Fac Ext Cet Arc Hub Fac Was Fac DSF Fac Was Fac Upp Upp War Pro Maximum Alert Level 3 | . . 1 1 1 1 . . . . . . 1 1 1 3 3 1 . . . . . . . . . Low Security (%) 78 | 100 100 68 98 81 73 100 . . . . 100 80 95 34 29 16 59 100 100 100 100 100 . . . . Level 1 15 | . . 31 1 18 26 . . . . . . 19 4 65 10 14 40 . . . . . . . . . Level 2 4 | . . . . . . . . . . . . . . . 23 59 . . . . . . . . . . Level 3 1 | . . . . . . . . . . . . . . . 36 10 . . . . . . . . . . Level 4 . | . . . . . . . . . . . . . . . . . . . . . . . . . . . Level 5 . | . . . . . . . . . . . . . . . . . . . . . . . . . . . High Security . | . . . . . . . . . . . . . . . . . . . . . . . . . . . Max Security . | . . . . . . . . . . . . . . . . . . . . . . . . . . . Peak Influence 1074 | . 148 316 216 268 323 132 . . . . 122 370 210 264 1074 756 256 67 . 22 56 15 . . . . Initial 501 | . . . 115 . 101 132 . . . . . 3 8 61 65 501 256 67 . . . . . . . . Average 123 | . 64 151 44 93 132 35 . . . . 39 111 92 204 505 441 173 34 . 1 12 . . . . . Influence Increases 10054 | . 536 1231 295 970 795 444 160 . . 332 324 745 450 315 1220 987 . . . 34 88 15 618 70 380 45 Destroy 0b10 Robot/C 5420 | . 360 800 240 660 460 260 140 . . 240 180 420 220 80 360 420 . . . . . . 300 40 240 . Destroy 0b10 Robot/NC 275 | . 35 60 . 40 35 15 . . . 10 . 5 10 20 25 20 . . . . . . . . . . Destroy Leader 1088 | . 76 186 40 162 164 84 20 . . 30 40 70 10 . 102 74 . . . . . . 20 10 . . Allied During Kill 1284 | . . . 4 8 . . . . . 7 53 75 188 100 406 . . . . . . . 283 20 140 . Trap Triggered on 0b10 10 | . . . . 10 . . . . . . . . . . . . . . . . . . . . . . Successful Hack 167 | . 18 17 . 13 10 39 . . . . . . 8 . 5 38 . . . 19 . . . . . . Disable Machine 825 | . 15 45 . . 75 45 . . . . 45 60 . 105 195 225 . . . . . 15 . . . . Destroy Structure 565 | . 2 3 11 2 36 1 . . . . 6 55 14 10 127 210 . . . . 88 . . . . . Lose Combat Pursuer 420 | . 30 120 . 75 15 . . . . 45 . 60 . . . . . . . 15 . . 15 . . 45 Influence Decreases 10029 | . 536 935 591 730 743 705 191 . . 332 316 738 311 283 381 1280 636 96 . 34 88 15 356 287 261 184 Entered New Map 2008 | . . . 181 . 139 160 13 . . . . 5 7 93 121 524 476 29 . . . . . 51 45 164 Time Decay 6127 | . 506 725 390 428 564 535 120 . . 278 316 403 284 190 150 526 90 67 . 34 68 15 206 206 16 10 Lost Part 842 | . 30 60 . 40 40 10 58 . . 54 . 210 . . 30 70 50 . . . 20 . 30 10 120 10 Lost Ally 530 | . . . 20 40 . . . . . . . 120 20 . 80 10 20 . . . . . 120 20 80 . Purge Threat 522 | . . 150 . 222 . . . . . . . . . . . 150 . . . . . . . . . . Squads Dispatched 37 | . 4 3 . 4 2 7 . . . . 2 2 1 . 5 4 . . 1 1 . 1 . . . . Investigation 8 | . 3 1 . . . 1 . . . . 1 . 1 . . . . . . 1 . . . . . . Extermination 6 | . . . . . . 3 . . . . 1 . . . . 1 . . . . . 1 . . . . Reinforcement 16 | . 1 2 . 2 1 2 . . . . . 2 . . 5 . . . 1 . . . . . . . Assault . | . . . . . . . . . . . . . . . . . . . . . . . . . . . Garrison 7 | . . . . 2 1 1 . . . . . . . . . 3 . . . . . . . . . . Intercept . | . . . . . . . . . . . . . . . . . . . . . . . . . . . Searches Triggered . | . . . . . . . . . . . . . . . . . . . . . . . . . . . Construction Impeded 2 | . . . . . . . . . . . . . . . 2 . . . . . . . . . . . Haulers Reinforced 2 | . . . . . . 1 . . . . . . . . 1 . . . . . . . . . . . Active Scanning Responses . | . . . . . . . . . . . . . . . . . . . . . . . . . . . Cargo Convoy Interrupts . | . . . . . . . . . . . . . . . . . . . . . . . . . . . Stealth | -11 -10 -9 -9 -8 -8 -7 -7 -7 -7 -6 -6 -6 -6 -6 -6 -5 -5 -5 -5 -4 -4 -4 -4 -4 -4 -3 --------- Run | Yrd Mat Mat Min Mat Sto Fac Low Low Dat Pro Fac Ext Cet Arc Hub Fac Was Fac DSF Fac Was Fac Upp Upp War Pro Distress Signals 28 | . 1 3 . 10 5 2 . . . . . 2 1 . 1 1 . . . . . 2 . . . . Communications Jammed . | . . . . . . . . . . . . . . . . . . . . . . . . . . . Distress Signals . | . . . . . . . . . . . . . . . . . . . . . . . . . . . Times Spotted 434 | . 34 60 12 57 31 17 7 7 . 14 6 29 11 22 27 24 6 . 3 4 6 . 14 3 33 7 Peak Tracking Total 18 | . 5 6 3 5 5 4 3 5 . 4 3 12 5 1 6 5 6 . 3 2 3 . 5 2 18 5 Tactical Retreats 20 | . 2 5 . 4 1 . . . . 3 . 2 . . . . . . . 1 . . 1 . . 1 Traps | -11 -10 -9 -9 -8 -8 -7 -7 -7 -7 -6 -6 -6 -6 -6 -6 -5 -5 -5 -5 -4 -4 -4 -4 -4 -4 -3 ------- Run | Yrd Mat Mat Min Mat Sto Fac Low Low Dat Pro Fac Ext Cet Arc Hub Fac Was Fac DSF Fac Was Fac Upp Upp War Pro Traps Triggered 24 | . 6 3 . . 6 1 . . . . . 3 . . . 1 . . 1 3 . . . . . . Indirectly . | . . . . . . . . . . . . . . . . . . . . . . . . . . . Trap Hack Attempts 55 | . . . . 10 . 9 . . . . 36 . . . . . . . . . . . . . . . Triggered . | . . . . . . . . . . . . . . . . . . . . . . . . . . . Disarmed 1 | . . . . . . . . . . . 1 . . . . . . . . . . . . . . . Reprogrammed 2 | . . . . 1 . 1 . . . . . . . . . . . . . . . . . . . . Reused 1 | . . . . 1 . . . . . . . . . . . . . . . . . . . . . . Traps Extracted . | . . . . . . . . . . . . . . . . . . . . . . . . . . . Installed . | . . . . . . . . . . . . . . . . . . . . . . . . . . . Triggered 1 | . . . . 1 . . . . . . . . . . . . . . . . . . . . . . Most Traps Carried 6 | . . . . . . . 4 4 3 6 5 5 5 2 2 2 1 . . . . . . . . . Machines | -11 -10 -9 -9 -8 -8 -7 -7 -7 -7 -6 -6 -6 -6 -6 -6 -5 -5 -5 -5 -4 -4 -4 -4 -4 -4 -3 ---------- Run | Yrd Mat Mat Min Mat Sto Fac Low Low Dat Pro Fac Ext Cet Arc Hub Fac Was Fac DSF Fac Was Fac Upp Upp War Pro Machines Disabled 58 | . 1 3 . . 5 3 . . . . 3 5 1 7 13 15 . . . . . 1 . 1 . . Max in Single Turn 6 | . 1 1 . . 2 1 . . . . 1 1 . 2 6 6 . . . . . 1 . 1 . . Garrison Access 4 | . . . . 1 1 1 . . . . . . . . . . . . . 1 . . . . . . Network Hub 1 | . . . . . . . . . . . . . . . 1 . . . . . . . . . . . Energy Cycler 1 | . . . . . . . . . . . . 1 . . . . . . . . . . . . . . Machines Repaired . | . . . . . . . . . . . . . . . . . . . . . . . . . . . Machines Dismantled . | . . . . . . . . . . . . . . . . . . . . . . . . . . . Machines Sabotaged . | . . . . . . . . . . . . . . . . . . . . . . . . . . . Overloaded Fab Kills . | . . . . . . . . . . . . . . . . . . . . . . . . . . . Hacking | -11 -10 -9 -9 -8 -8 -7 -7 -7 -7 -6 -6 -6 -6 -6 -6 -5 -5 -5 -5 -4 -4 -4 -4 -4 -4 -3 --------- Run | Yrd Mat Mat Min Mat Sto Fac Low Low Dat Pro Fac Ext Cet Arc Hub Fac Was Fac DSF Fac Was Fac Upp Upp War Pro Machines Accessed 68 | . 6 7 . 8 8 7 1 . 4 . 1 5 2 . 1 5 . 1 . 4 . 1 . . 7 . Terminals 39 | . 5 5 . 6 5 4 . . . . . 5 2 . 1 4 . 1 . 1 . . . . . . Fabricators 3 | . . . . . . 2 . . . . . . . . . . . . . 1 . . . . . . Repair Stations 3 | . . . . 1 1 . . . . . . . . . . 1 . . . . . . . . . . Recycling Units 7 | . 1 2 . . 1 . . . . . 1 . . . . . . . . 1 . 1 . . . . Scanalyzers . | . . . . . . . . . . . . . . . . . . . . . . . . . . . Garrison Access 4 | . . . . 1 1 1 . . . . . . . . . . . . . 1 . . . . . . Total Hacks 175 | . 18 15 . 20 14 16 1 . 21 . 1 9 7 . 5 23 . 2 . 11 . 1 . . 11 . Successful 94 | . 5 7 . 8 8 10 1 . 21 . 1 5 2 . 2 5 . 1 . 6 . 1 . . 11 . Failed 80 | . 13 7 . 12 6 6 . . . . . 4 5 . 3 18 . 1 . 5 . . . . . . Catastrophic 13 | . . 1 . 4 1 1 . . . . . . 1 . 1 3 . . . 1 . . . . . . Database Lockouts 1 | . . 1 . . . . . . . . . . . . . . . . . . . . . . . . Manual 70 | . 15 9 . 13 4 7 . . . . . 2 1 1 . 11 . . . 7 . . . . . . Terminals 115 | . 16 13 . 15 9 10 . . . . . 9 7 . 5 22 . 2 . 7 . . . . . . Fabricators 6 | . . . . . . 4 . . . . . . . . . . . . . 2 . . . . . . Repair Stations 6 | . . . . 4 1 . . . . . . . . . . 1 . . . . . . . . . . Recycling Units 8 | . 2 2 . . 1 . . . . . 1 . . . . . . . . 1 . 1 . . . . Scanalyzers . | . . . . . . . . . . . . . . . . . . . . . . . . . . . Garrison Access 7 | . . . . 1 3 2 . . . . . . . . . . . . . 1 . . . . . . Terminal Hacks 73 | . 2 5 . 5 6 6 1 . 21 . . 5 2 . 2 4 . 1 . 2 . . . . 11 . Record 9 | . . . . . . . . . 3 . . . 1 . . . . . . . . . . . 5 . Part Schematic 14 | . . . . . . 3 . . 11 . . . . . . . . . . . . . . . . . Robot Schematic 4 | . . . . . . . . . 4 . . . . . . . . . . . . . . . . . Robot Analysis 8 | . 1 3 . 2 . . . . . . . . . . 2 . . . . . . . . . . . Prototype ID Bank 10 | . . . . . 1 . . . 3 . . 1 . . . . . . . . . . . . 5 . Open Door 5 | . . . . . 1 . 1 . . . . 1 1 . . . . . . . . . . . 1 . Open DSF 1 | . . . . . . . . . . . . . . . . . . 1 . . . . . . . . Level Access Points 1 | . . . . . . . . . . . . . . . . 1 . . . . . . . . . . Branch Access Points 2 | . . . . . . 1 . . . . . . . . . . . . . 1 . . . . . . Emergency Access Points 1 | . . . . . . . . . . . . . . . . . . . . 1 . . . . . . Alert Level 4 | . . . . . 1 1 . . . . . 1 . . . 1 . . . . . . . . . . Unreport Threat 4 | . . 1 . 2 . . . . . . . . . . . 1 . . . . . . . . . . Locate Traps 6 | . 1 . . 1 2 . . . . . . 1 . . . 1 . . . . . . . . . . Hauler Manifests 3 | . . 1 . . 1 1 . . . . . . . . . . . . . . . . . . . . Zone Layout 1 | . . . . . . . . . . . . 1 . . . . . . . . . . . . . . Fabricator Hacks 5 | . . . . . . 3 . . . . . . . . . . . . . 2 . . . . . . Network Status 1 | . . . . . . 1 . . . . . . . . . . . . . . . . . . . . Load Schematic 2 | . . . . . . 1 . . . . . . . . . . . . . 1 . . . . . . Build 2 | . . . . . . 1 . . . . . . . . . . . . . 1 . . . . . . Repair Station Hacks 2 | . . . . 2 . . . . . . . . . . . . . . . . . . . . . . Scan Component 1 | . . . . 1 . . . . . . . . . . . . . . . . . . . . . . Repair 1 | . . . . 1 . . . . . . . . . . . . . . . . . . . . . . Recycling Unit Hacks 7 | . 1 2 . . 1 . . . . . 1 . . . . . . . . 1 . 1 . . . . Report Inventory 7 | . 1 2 . . 1 . . . . . 1 . . . . . . . . 1 . 1 . . . . Scanalyzer . | . . . . . . . . . . . . . . . . . . . . . . . . . . . Garrison Access Hacks 4 | . . . . 1 1 1 . . . . . . . . . . . . . 1 . . . . . . Seal Access 4 | . . . . 1 1 1 . . . . . . . . . . . . . 1 . . . . . . Unauthorized Hacks 3 | . 2 . . . . . . . . . . . . . . 1 . . . . . . . . . . Terminals 3 | . 2 . . . . . . . . . . . . . . 1 . . . . . . . . . . Assimilate 1 | . . . . . . . . . . . . . . . . 1 . . . . . . . . . . Botnet 2 | . 2 . . . . . . . . . . . . . . . . . . . . . . . . . Fabricators . | . . . . . . . . . . . . . . . . . . . . . . . . . . . Repair Stations . | . . . . . . . . . . . . . . . . . . . . . . . . . . . Recycling Units . | . . . . . . . . . . . . . . . . . . . . . . . . . . . Scanalyzers . | . . . . . . . . . . . . . . . . . . . . . . . . . . . Garrison Access . | . . . . . . . . . . . . . . . . . . . . . . . . . . . Data Cores Recovered 1 | . . . . . . . . . . . . . . . 1 . . . . . . . . . . . Used . | . . . . . . . . . . . . . . . . . . . . . . . . . . . Hacking Detections 40 | . 5 5 . 6 5 4 . . . . . 3 2 . 1 5 . 1 . 2 . 1 . . . . Full Trace Events 4 | . 1 . . . . 1 . . . . . . 1 . . . . . . 1 . . . . . . Feedback Events 1 | . . . . . . . . . . . . . 1 . . . . . . . . . . . . . Corruption 1 | . . . . . . . . . . . . . 1 . . . . . . . . . . . . . Feedback Blocked . | . . . . . . . . . . . . . . . . . . . . . . . . . . . Robot Schematics Acquired 4 | . . . . . . . . . 4 . . . . . . . . . . . . . . . . . Robots Built . | . . . . . . . . . . . . . . . . . . . . . . . . . . . Authchips . | . . . . . . . . . . . . . . . . . . . . . . . . . . . Time . | . . . . . . . . . . . . . . . . . . . . . . . . . . . Total Robot Build Rating . | . . . . . . . . . . . . . . . . . . . . . . . . . . . Part Schematics Acquired 14 | . . . . . . 3 . . 11 . . . . . . . . . . . . . . . . . Parts Built 4 | . . . . . . 2 . . . . . . . . . . . . . 2 . . . . . . Authchips . | . . . . . . . . . . . . . . . . . . . . . . . . . . . Time 84 | . . . . . . 42 . . . . . . . . . . . . . 42 . . . . . . Total Part Build Rating 16 | . . . . . . 8 . . . . . . . . . . . . . 8 . . . . . . Parts Repaired 1 | . . . . 1 . . . . . . . . . . . . . . . . . . . . . . Time 26 | . . . . 26 . . . . . . . . . . . . . . . . . . . . . . Parts Recycled . | . . . . . . . . . . . . . . . . . . . . . . . . . . . Recycled Matter . | . . . . . . . . . . . . . . . . . . . . . . . . . . . Retrieved Matter . | . . . . . . . . . . . . . . . . . . . . . . . . . . . Retrieved Components . | . . . . . . . . . . . . . . . . . . . . . . . . . . . Parts Scanalyzed . | . . . . . . . . . . . . . . . . . . . . . . . . . . . Part Schematics Acquired . | . . . . . . . . . . . . . . . . . . . . . . . . . . . Parts Damaged . | . . . . . . . . . . . . . . . . . . . . . . . . . . . Bothacking | -11 -10 -9 -9 -8 -8 -7 -7 -7 -7 -6 -6 -6 -6 -6 -6 -5 -5 -5 -5 -4 -4 -4 -4 -4 -4 -3 ------------ Run | Yrd Mat Mat Min Mat Sto Fac Low Low Dat Pro Fac Ext Cet Arc Hub Fac Was Fac DSF Fac Was Fac Upp Upp War Pro Used RIF Installer . | . . . . . . . . . . . . . . . . . . . . . . . . . . . Robots Hacked . | . . . . . . . . . . . . . . . . . . . . . . . . . . . Non-combat . | . . . . . . . . . . . . . . . . . . . . . . . . . . . Combat . | . . . . . . . . . . . . . . . . . . . . . . . . . . . Robot Hacks Applied . | . . . . . . . . . . . . . . . . . . . . . . . . . . . Relay Couplers Released . | . . . . . . . . . . . . . . . . . . . . . . . . . . . Fabnet Peak Effective % . | . . . . . . . . . . . . . . . . . . . . . . . . . . . Robots Rewired 8 | . . . . . . . . . . . . 4 . . . . . . . . . . . . 4 . Allies Hacked 2 | . . . . . . . . . . . . . . . 1 . . . . . . . 1 . . . Hacks Repelled 1 | . . . . . . . . . . . . . . . . 1 . . . . . . . . . . Allies | -11 -10 -9 -9 -8 -8 -7 -7 -7 -7 -6 -6 -6 -6 -6 -6 -5 -5 -5 -5 -4 -4 -4 -4 -4 -4 -3 -------- Run | Yrd Mat Mat Min Mat Sto Fac Low Low Dat Pro Fac Ext Cet Arc Hub Fac Was Fac DSF Fac Was Fac Upp Upp War Pro Total Allies 47 | . . . 5 . . . . . . 1 . 12 5 . . 1 1 . . . 18 . . . 4 . Largest Group 18 | . . . 3 3 . . . . . 1 1 7 10 10 7 1 1 . . . 18 14 13 6 9 . Highest-Rated Group 724 | . . . 54 54 . . . . . 96 96 332 724 717 464 10 31 . . . 656 555 515 232 390 . Highest-Rated Ally 159 | . . . 31 31 . . . . . 96 96 159 159 128 96 10 31 . . . 50 50 50 46 56 . Total Orders . | . . . . . . . . . . . . . . . . . . . . . . . . . . . Ally Attacks 488 | . . . 15 25 . . . . . . 18 49 46 28 69 . 13 . . . 124 . 65 10 26 . Total Damage 14164 | . . . 127 261 . . . . . . 559 1443 1013 941 2330 . 146 . . . 4273 . 1973 261 837 . Kills 76 | . . . 1 3 . . . . . . 7 4 9 6 17 . . . . . 10 . 13 2 4 . Allies Corrupted 4 | . . . . . . . . . . . . . . . 2 . . . . . . . 2 . . . Allies Melted . | . . . . . . . . . . . . . . . . . . . . . . . . . . . Intel | -11 -10 -9 -9 -8 -8 -7 -7 -7 -7 -6 -6 -6 -6 -6 -6 -5 -5 -5 -5 -4 -4 -4 -4 -4 -4 -3 ------- Run | Yrd Mat Mat Min Mat Sto Fac Low Low Dat Pro Fac Ext Cet Arc Hub Fac Was Fac DSF Fac Was Fac Upp Upp War Pro Active Infowar (turns) 25396 | . . 4353 1909 2429 1701 1999 1229 962 151 2351 1242 1478 622 382 313 1463 198 150 28 274 335 244 428 433 722 . Optics 23069 | . . 4353 1909 2429 1701 1999 1229 962 151 2351 1242 1478 622 382 313 1463 198 150 28 109 . . . . . . Sensors 11849 | . . . . 940 270 1758 1086 962 151 1574 1242 405 . . 82 1358 198 150 28 274 335 244 428 352 12 . IFF 5 | . . . . . . . . . . . . . . . . . . 5 . . . . . . . . Terrain 1622 | . . . . . . . . . . . . . . . . . . . . . . 39 428 433 722 . Seismic 1757 | . . . . . . 179 . . . . 1067 511 . . . . . . . . . . . . . . Robot Analysis Total 8 | . 1 3 . 2 . . . . . . . . . . 2 . . . . . . . . . . . Derelict Logs Recovered 6 | . . . 1 . . . 3 1 . . . . . . . . . . . . . . . 1 . . Drone Launches . | . . . . . . . . . . . . . . . . . . . . . . . . . . . Drone Recoveries . | . . . . . . . . . . . . . . . . . . . . . . . . . . . Exploration | -11 -10 -9 -9 -8 -8 -7 -7 -7 -7 -6 -6 -6 -6 -6 -6 -5 -5 -5 -5 -4 -4 -4 -4 -4 -4 -3 ------------- Run | Yrd Mat Mat Min Mat Sto Fac Low Low Dat Pro Fac Ext Cet Arc Hub Fac Was Fac DSF Fac Was Fac Upp Upp War Pro Turns Passed 27283 | 72 1661 4353 1909 2429 1701 1999 1229 962 151 2351 1242 1478 622 382 313 1463 198 150 28 274 335 244 428 433 731 145 Spaces Moved 11913 | 40 671 1169 575 818 557 719 676 454 91 592 509 523 312 159 149 673 210 213 38 433 295 287 514 426 591 219 Core 781 | 6 2 . . . . . 1 . . 5 . 52 . . . . 141 213 32 329 . . . . . . Treads 7292 | 34 669 1169 575 818 557 719 675 454 91 190 . . 285 159 149 673 69 . 6 . . . . . . . Legs 1404 | . . . . . . . . . . 397 509 471 27 . . . . . . . . . . . . . Wheels . | . . . . . . . . . . . . . . . . . . . . . . . . . . . Hover 2436 | . . . . . . . . . . . . . . . . . . . . 104 295 287 514 426 591 219 Flight . | . . . . . . . . . . . . . . . . . . . . . . . . . . . Fastest Speed 50 | 50 160 240 320 240 240 240 158 158 158 190 190 50 160 160 160 160 50 50 50 50 76 63 63 63 63 62 Average Speed 195 | 149 197 318 320 240 242 240 165 193 164 373 220 230 164 162 160 160 86 50 67 57 78 63 63 94 114 63 Slowest Speed 1650 | 160 450 400 320 240 480 240 1650 238 238 1500 260 1600 260 240 160 160 240 50 160 100 151 76 63 120 120 66 Overloaded Moves . | . . . . . . . . . . . . . . . . . . . . . . . . . . . Propulsion Burnouts . | . . . . . . . . . . . . . . . . . . . . . . . . . . . Robots Hopped . | . . . . . . . . . . . . . . . . . . . . . . . . . . . Potential Cave-ins 5 | . . . . . . . . . . . 2 3 . . . . . . . . . . . . . . Cave-ins Triggered . | . . . . . . . . . . . . . . . . . . . . . . . . . . . Exploration Rate (%) 58 | 5 89 86 88 81 90 19 77 80 72 75 13 77 88 86 32 18 77 3 46 13 97 7 69 65 75 39 Regions Visited 26 Branch Regions 14 Pre-discovered Areas 3 | . . . . . 1 . 1 . . . . . . . . . . . . . . . . 1 . . Known Exits Taken 16 | . . . . 1 1 1 1 1 1 1 1 1 1 1 1 . . 1 . . . 1 1 1 . . Unknown Exits Taken 5 | 1 1 1 1 . . . . . . . . . . . . . . . . . . . . . 1 . Scrap Searched 23 | . . . 1 . . . 6 7 . 5 . . . . . . . . . . . . 1 2 . 1 Spaces Dug 17 | . . . . . . . . . . . 12 . . . . 2 1 . . . . . . 2 . . Terrain Destroyed 721 | . . . 11 1 30 . 46 43 . 82 12 51 6 7 160 109 1 . . . 51 . 27 2 82 . Melee 2 | . . . . . . . . . . . . . . . . . . . . . . . . 2 . . Projectile 125 | . . . . 1 10 . 10 4 . 12 12 9 6 6 14 40 1 . . . . . . . . . AOE 593 | . . . 11 . 20 . 36 39 . 70 . 42 . . 146 69 . . . . 51 . 27 . 82 . Terrain Rammed . | . . . . . . . . . . . . . . . . . . . . . . . . . . . Walls Destroyed . | . . . . . . . . . . . . . . . . . . . . . . . . . . . Machines Disabled . | . . . . . . . . . . . . . . . . . . . . . . . . . . . Actions | -11 -10 -9 -9 -8 -8 -7 -7 -7 -7 -6 -6 -6 -6 -6 -6 -5 -5 -5 -5 -4 -4 -4 -4 -4 -4 -3 --------- Run | Yrd Mat Mat Min Mat Sto Fac Low Low Dat Pro Fac Ext Cet Arc Hub Fac Was Fac DSF Fac Was Fac Upp Upp War Pro Total 14450 | 49 846 1549 616 1070 791 925 738 492 94 660 598 683 407 235 182 897 224 255 41 456 395 345 596 445 637 224 Wait 988 | . 47 184 21 68 81 104 5 . . 8 14 15 45 35 6 94 10 39 . 6 88 45 61 7 5 . Move 11889 | 39 670 1168 574 817 556 718 675 453 90 591 508 522 311 158 148 673 209 212 37 433 294 286 513 425 590 219 Hop . | . . . . . . . . . . . . . . . . . . . . . . . . . . . Pick Up 177 | 4 22 23 2 17 12 8 12 2 . 6 6 21 12 3 . 17 1 . . 3 1 4 1 . . . Fast Attach 95 | 6 6 5 . 2 10 3 3 1 2 4 3 10 5 2 1 3 1 2 . 8 4 5 4 3 . 2 Attach 70 | . 3 7 . 8 3 3 10 . . 6 . 10 . . 2 8 . 1 2 . . . . 1 3 3 Detach 12 | . . 1 . 1 . . . . . . . . 3 1 . 1 . 1 1 1 . . . 1 1 . Swap 104 | . 5 9 2 16 19 15 4 3 . 9 4 5 1 4 3 2 . . . . . 2 1 . . . Drop 141 | . 6 15 2 18 21 9 2 3 2 1 6 6 16 5 1 10 2 . . 5 4 2 2 2 1 . Fire 822 | . 86 135 15 113 89 56 27 30 . 34 21 57 14 25 20 89 1 . . . 4 . 1 . 5 . Melee 30 | . 1 2 . . . . . . . . . 5 . . . . . . . . . 1 13 6 2 . Ram 1 | . . . . . . . . . . . . 1 . . . . . . . . . . . . . . Kick . | . . . . . . . . . . . . . . . . . . . . . . . . . . . Crush 3 | . . . . . . . . . . . . . . 2 1 . . . . . . . . . . . Escape Stasis 11 | . . . . . . . . . . . . 10 . . . . . . 1 . . . . . . . Rewire 52 | . . . . . . . . . . 1 . 21 . . . . . . . . . . . . 30 . Trap 55 | . . . . 10 . 9 . . . . 36 . . . . . . . . . . . . . . . Miscellaneous . | . . . . . . . . . . . . . . . . . . . . . . . . . . . Route ------- -11/Scrapyard -10/Materials (discovered 3 exits: *Mat x2 / [*Min]) -9/Materials (discovered 4 exits: *Mat x3 / [*Min]) -9/Mines (discovered 2 exits: *Mat x2) -8/Materials (discovered 4 exits: *Fac x2 / *Sto x2) -8/Storage -7/Factory (discovered 3 exits: *Fac / *Low x2) -7/Lower Caves -7/Lower Caves (discovered 2 exits: *Fac / *Dat) -7/Data Miner -6/Proximity Caves -6/Factory (discovered 3 exits: Fac x2 / *Ext) -6/Extension (discovered 3 exits: *Fac x2 / *Cet) -6/Cetus (discovered 2 exits: *Fac / *Arc) -6/Archives (discovered 2 exits: *Fac / *Hub) -6/Hub_04(d) -5/Factory (discovered 4 exits: *Fac x4) -5/Waste -5/Factory -5/DSF -4/Factory (discovered 2 exits: Upp x2) -4/Waste -4/Factory -4/Upper Caves -4/Upper Caves (discovered 2 exits: *Res / *War) -4/Warlord -3/Proximity Caves History --------- Turn | Location | Event 21 | -11/Scrapyard | Discovered new exit (range 15) 73 | -11/Scrapyard | Entered Materials 302 | -10/Materials | Build established: Mutant 870 | -10/Materials | Discovered new exit (range 5) 961 | -10/Materials | Discovered new exit (range 15) 1648 | -10/Materials | Discovered new exit (range 16) 1734 | -10/Materials | Entered another Materials area 1734 | -9/Materials | Evolved 2 slots: Utility x2 2302 | -9/Materials | Destroyed 11 combat bots 2414 | -9/Materials | Build established: Scavenger-Mutant 2646 | -9/Materials | Discovered new exit (range 5) 4926 | -9/Materials | Discovered new exit (range 9) 4975 | -9/Materials | Central database locked down 5302 | -9/Materials | Discovered new exit (range 17) 5463 | -9/Materials | Build established: Mutant 5664 | -9/Materials | Discovered new exit (range 14) 5871 | -9/Materials | Core integrity fell below 50% 6087 | -9/Materials | Entered Mines 6177 | -9/Mines | Discovered new exit (range 5) 6692 | -9/Mines | Discovered new exit (range 17) 7206 | -9/Mines | Found a Scrap Suit stashed away for nefarious purposes 7273 | -9/Mines | Assisted by bots powering up and referring to "LRC-V3" 7996 | -9/Mines | Entered Materials 7996 | -8/Materials | Accompanied by 3 allies 7996 | -8/Materials | Evolved 2 slots: Propulsion x1, Utility x1 7997 | -8/Materials | Identified exit to Factory 8001 | -8/Materials | Led the pair of lost Derelicts to an unsafe place 8300 | -8/Materials | Build established: Scavenger-Mutant 8993 | -8/Materials | Discovered exit to Factory (range 18) 9348 | -8/Materials | Build established: Mutant 9577 | -8/Materials | Discovered new exit (range 16) 9851 | -8/Materials | Garrison activated, responded to threat 9933 | -8/Materials | Build established: Scavenger-Mutant 10346 | -8/Materials | Repaired Lgt. Treads 10417 | -8/Materials | Discovered new exit (range 4) 10425 | -8/Materials | Identified exit to Storage 10425 | -8/Materials | Entered Storage 10833 | -8/Storage | Discovered exit to Factory (range 19) 11111 | -8/Storage | Core integrity fell below 50% 11477 | -8/Storage | Learned location of Armory (-3) 11663 | -8/Storage | Garrison activated, responded to threat 11800 | -8/Storage | Build established: Mutant 12126 | -8/Storage | Entered Factory 12126 | -7/Factory | Evolved 2 slots: Propulsion x1, Utility x1 12516 | -7/Factory | Identified exit to Lower Caves 12681 | -7/Factory | Build established: Scavenger-Skirmisher 12801 | -7/Factory | Discovered new exit (range 8) 12817 | -7/Factory | Identified exit to Factory 13503 | -7/Factory | Fabricated Med. Treads (x2) 14042 | -7/Factory | Garrison activated, responded to threat 14125 | -7/Factory | Entered Lower Caves 14184 | -7/Lower Caves | Lost 5 parts (2n1u2w) 14258 | -7/Lower Caves | Lost 3 parts (1p2n) 14540 | -7/Lower Caves | Build established: Hacker-Skirmisher 14599 | -7/Lower Caves | Encountered a Warlord checkpoint 14623 | -7/Lower Caves | Identified exit to Lower Caves 15288 | -7/Lower Caves | Learned Factory security intel 15292 | -7/Lower Caves | Learned location of Extension (-6) 15354 | -7/Lower Caves | Entered another Lower Caves area 15481 | -7/Lower Caves | Discovered exit to Factory (range 14) 15775 | -7/Lower Caves | Attacked by a faux Warlord 15825 | -7/Lower Caves | Destroyed 7 combat bots 15862 | -7/Lower Caves | Learned 12 Factory zone layouts 16052 | -7/Lower Caves | Discovered new exit (range 8) 16069 | -7/Lower Caves | Identified exit to Data Miner 16316 | -7/Lower Caves | Entered Data Miner 16318 | -7/Data Miner | Discovered new exit (range 6) 16341 | -7/Data Miner | Met Data Miner 16403 | -7/Data Miner | Received God Mode back door access code from Data Miner 16465 | -7/Data Miner | Identified exit to Proximity Caves 16467 | -7/Data Miner | Entered Proximity Caves 16478 | -6/Proximity Caves | Core integrity fell below 50% 16608 | -6/Proximity Caves | Build established: Hacker-Mutant 16925 | -6/Proximity Caves | Spotted B-75 Beast 16944 | -6/Proximity Caves | Destroyed B-75 Beast 16972 | -6/Proximity Caves | Lost 5 parts (1p2n2w) 17112 | -6/Proximity Caves | Attracted the attention of an 0b10 checkpoint 17127 | -6/Proximity Caves | Escorted by Enhanced Grunt 17646 | -6/Proximity Caves | Build established: Skirmisher 18430 | -6/Proximity Caves | Discovered exit to Factory (range 10) 18818 | -6/Proximity Caves | Entered Factory 18818 | -6/Factory | Accompanied by 1 ally 18818 | -6/Factory | Evolved 2 slots: Power x1, Utility x1 18819 | -6/Factory | Identified exit to Factory 19777 | -6/Factory | Build established: Scavenger-Skirmisher 19984 | -6/Factory | Discovered new exit (range 12) 20059 | -6/Factory | Identified exit to Extension 20060 | -6/Factory | Entered Extension 20060 | -6/Extension | Accompanied by 1 ally 20077 | -6/Extension | Disrupted transfer network 20119 | -6/Extension | Rescued a captive Derelict 20145 | -6/Extension | Rescued a captive Derelict 20377 | -6/Extension | Energy Cycler disabled 20377 | -6/Extension | Rescued a captive Derelict 20378 | -6/Extension | Rescued a captive Derelict 20378 | -6/Extension | Rescued a captive Derelict 20380 | -6/Extension | Rescued a captive Derelict 20380 | -6/Extension | Rescued a captive Derelict 20382 | -6/Extension | Rescued a captive Derelict 20390 | -6/Extension | Rescued a captive Derelict 20453 | -6/Extension | Spotted B-75 Beast 20497 | -6/Extension | Lost 5 allies 20502 | -6/Extension | Destroyed 7 combat bots 20507 | -6/Extension | Spotted B-75 Beast 20515 | -6/Extension | Destroyed B-75 Beast 20575 | -6/Extension | Destroyed B-75 Beast 20602 | -6/Extension | Lost 17 parts (3p5n3u6w) 20773 | -6/Extension | Build established: Mutant 20779 | -6/Extension | Lost 3 parts (1u2w) 20878 | -6/Extension | Rescued A7 20920 | -6/Extension | Discovered exit to Factory (range 20) 21076 | -6/Extension | Build established: Hacker-Mutant 21498 | -6/Extension | Discovered exit to Factory (range 10) 21500 | -6/Extension | Discovered new exit (range 6) 21532 | -6/Extension | Identified exit to Cetus 21538 | -6/Extension | Entered Cetus 21538 | -6/Cetus | Accompanied by 7 allies (A7) 21543 | -6/Cetus | Acquired a Cetus Manufacturing Module code from A7 21558 | -6/Cetus | Spotted Cetus Guard 21558 | -6/Cetus | Spotted Cetus Guard 21562 | -6/Cetus | Spotted Cetus Guard 21566 | -6/Cetus | Allies destroyed Cetus Guard 21566 | -6/Cetus | Spotted Cetus Guard 21567 | -6/Cetus | Destroyed Cetus Guard 21570 | -6/Cetus | Destroyed Cetus Guard 21585 | -6/Cetus | Allies destroyed Cetus Guard 21776 | -6/Cetus | Started Cetus Manufacturing Module 21787 | -6/Cetus | Escorted A7 to Cetus Mainframe 21801 | -6/Cetus | Manufactured an Enhanced Grunt 21826 | -6/Cetus | Manufactured an Enhanced Grunt 21851 | -6/Cetus | Manufactured an Enhanced Grunt 21876 | -6/Cetus | Manufactured an Enhanced Grunt 21901 | -6/Cetus | Manufactured an Enhanced Grunt 21907 | -6/Cetus | Build established: Scavenger-Mutant 21967 | -6/Cetus | Discovered new exit (range 22) 22002 | -6/Cetus | Spotted Cetus Guard 22002 | -6/Cetus | Spotted Cetus Guard 22002 | -6/Cetus | Spotted Cetus Guard 22002 | -6/Cetus | Spotted Cetus Guard 22004 | -6/Cetus | Destroyed Cetus Guard 22016 | -6/Cetus | Allies destroyed Cetus Guard 22016 | -6/Cetus | Discovered exit to Factory (range 22) 22018 | -6/Cetus | Destroyed Cetus Guard 22023 | -6/Cetus | Allies destroyed Cetus Guard 22046 | -6/Cetus | Met Revision 17 22142 | -6/Cetus | Identified exit to Archives 22160 | -6/Cetus | Entered Archives 22160 | -6/Archives | Accompanied by 10 allies (A7) 22165 | -6/Archives | Received a hacking code to weaken MAIN.C 22302 | -6/Archives | Unable to access archive contents 22306 | -6/Archives | Discovered exit to Factory (range 15) 22342 | -6/Archives | Discovered new exit (range 16) 22366 | -6/Archives | Identified exit to Hub_04(d) 22542 | -6/Archives | Entered Hub_04(d) 22542 | -6/Hub_04(d) | Accompanied by 7 allies 22705 | -6/Hub_04(d) | Disrupted transfer network 22771 | -6/Hub_04(d) | Discovered exit to Factory (range 6) 22821 | -6/Hub_04(d) | Network Hub disabled 22829 | -6/Hub_04(d) | Spotted Lightning 22829 | -6/Hub_04(d) | Spotted Lightning 22829 | -6/Hub_04(d) | Spotted Lightning 22854 | -6/Hub_04(d) | System corruption reached 10% 22855 | -6/Hub_04(d) | Entered Factory 22855 | -5/Factory | Evolved 2 slots: Utility x2 22876 | -5/Factory | Lost 3 allies 22976 | -5/Factory | Identified exit to Factory 23155 | -5/Factory | Build established: Scavenger-Skirmisher 23474 | -5/Factory | Garrison activated, responded to threat 24318 | -5/Factory | Sucked down chute 24318 | -5/Factory | Entered Waste 24319 | -5/Waste | Met a frightened Derelict 24333 | -5/Waste | EMP discharged 24333 | -5/Waste | System corruption reached 10% 24354 | -5/Waste | Spotted C-40 Crusher 24366 | -5/Waste | Spotted C-40 Crusher 24408 | -5/Waste | Spotted C-40 Crusher 24409 | -5/Waste | Crushed by Compactor (1 part destroyed, 1 dropped) 24410 | -5/Waste | Spotted C-40 Crusher 24421 | -5/Waste | Spotted C-40 Crusher 24423 | -5/Waste | Spotted C-40 Crusher 24428 | -5/Waste | Crushed by Compactor (1 part destroyed) 24433 | -5/Waste | EMP discharged 24434 | -5/Waste | Crushed by Compactor (0 parts destroyed, 2 dropped) 24459 | -5/Waste | Lost 5 parts (1n2u2w) 24506 | -5/Waste | Discovered new exit (range 21) 24516 | -5/Waste | Identified exit to Factory 24516 | -5/Waste | Entered Factory 24666 | -5/Factory | Identified exit to DSF 24666 | -5/Factory | Entered DSF 24673 | -5/DSF | Discovered exit to Factory (range 21) 24686 | -5/DSF | Core integrity fell below 50% 24689 | -5/DSF | Additional patrols routed to DSF 24694 | -5/DSF | Entered Factory 24694 | -4/Factory | Evolved 2 slots: Utility x2 24871 | -4/Factory | Identified exit to Upper Caves 24968 | -4/Factory | Fabricated Lyr. Light Armor Plating? 24968 | -4/Factory | Sucked down chute 24968 | -4/Factory | Entered Waste 24996 | -4/Waste | Warlord forces began an assault 25070 | -4/Waste | Spotted C-40 Crusher 25082 | -4/Waste | Spotted C-40 Crusher 25084 | -4/Waste | Allies destroyed C-40 Crusher 25088 | -4/Waste | Spotted C-40 Crusher 25090 | -4/Waste | Allies destroyed C-40 Crusher 25094 | -4/Waste | Allies destroyed C-40 Crusher 25096 | -4/Waste | Spotted C-40 Crusher 25101 | -4/Waste | Allies destroyed C-40 Crusher 25104 | -4/Waste | Spotted C-40 Crusher 25106 | -4/Waste | Allies destroyed C-40 Crusher 25108 | -4/Waste | Spotted C-40 Crusher 25109 | -4/Waste | Allies destroyed C-40 Crusher 25130 | -4/Waste | Lost 4 allies 25152 | -4/Waste | Build established: Hacker-Mutant 25218 | -4/Waste | Discovered new exit (range 12) 25303 | -4/Waste | Entered Factory 25303 | -4/Factory | Accompanied by 14 allies 25494 | -4/Factory | Discovered exit to Upper Caves (range 5) 25547 | -4/Factory | Entered Upper Caves 25547 | -4/Upper Caves | Accompanied by 13 allies 25560 | -4/Upper Caves | Encountered a Warlord checkpoint 25605 | -4/Upper Caves | Lost 4 allies 25714 | -4/Upper Caves | Attracted the attention of an 0b10 outpost 25759 | -4/Upper Caves | Lost 3 parts (1p1u1w) 25759 | -4/Upper Caves | Lost 5 allies 25832 | -4/Upper Caves | Discovered new exit (range 10) 25838 | -4/Upper Caves | Identified exit to Upper Caves 25975 | -4/Upper Caves | Entered another Upper Caves area 25975 | -4/Upper Caves | Accompanied by 6 allies 25975 | -4/Upper Caves | Discovered new exit (range 15) 25984 | -4/Upper Caves | Identified exit to Research 25996 | -4/Upper Caves | Learned location of Quarantine (-3) 26032 | -4/Upper Caves | Build established: Scavenger-Scout 26133 | -4/Upper Caves | Attacked by a delusional Derelict stockpiling parts 26384 | -4/Upper Caves | Discovered new exit (range 6) 26389 | -4/Upper Caves | Identified exit to Warlord 26408 | -4/Upper Caves | Entered Warlord 26408 | -4/Warlord | Accompanied by 5 allies 26448 | -4/Warlord | System corruption cleaned by Quarantine Array 26615 | -4/Warlord | Build established: Scavenger-Mutant 26689 | -4/Warlord | Visited the Vortex Lab 26704 | -4/Warlord | Warlord's base attacked by MAIN.C 26776 | -4/Warlord | Met Warlord 27054 | -4/Warlord | Warlord forces counterattacked 27106 | -4/Warlord | Spotted Striker 27125 | -4/Warlord | Spotted Striker 27126 | -4/Warlord | Spotted Executioner 27127 | -4/Warlord | Spotted Executioner 27128 | -4/Warlord | Discovered new exit (range 15) 27135 | -4/Warlord | Destroyed 8 combat bots 27135 | -4/Warlord | Core integrity fell below 50% 27139 | -4/Warlord | Entered Proximity Caves 27159 | -3/Proximity Caves | Lost 12 allies 27166 | -3/Proximity Caves | Lost 12 parts (2p3n5u2w) 27228 | -3/Proximity Caves | Spotted B-86 Titan 27260 | -3/Proximity Caves | Core integrity fell below 20% 27284 | -3/Proximity Caves | Destroyed by S-43 Plague with Heavy Machine Gun Last Messages --------------- 27135_ Knocked back. 27137_ Penetrated by Slug. 27137_ Slug penetrates G-67 Veteran. 27138_ Slug penetrates Executioner. 27138_ Penetrated by Slug. 27138_ Slug penetrates L-61 Swordsman. 27138_ Penetrated by Slug. LOCATION=UNKNOWN GOAL=ESCAPE 27216_ Searching scrap... 27216_ Found Arc Thrower. 27216_ Found Adv. Hacking Suite. 27216_ Found Adv. Signal Interpreter. 27216_ Found 40 Matter. 27217_ Acquired Adv. Hacking Suite. 27218_ Acquired 40 matter. 27220_ Acquired Adv. Signal Interpreter. 27236_ System corrupted: Heat flow error (+253). 27276_ P6J7SJMTSLR|HT